[Event "Live Chess"]
[Site "Chess.com"]
[Date "2023.05.20"]
[Round "-"]
[White "Ian-Morley"]
[Black "Ocelot32"]
[Result "0-1"]
[WhiteElo "1072"]
[BlackElo "1396"]
[TimeControl "300"]
[EndTime "9:50:00 PDT"]
[Termination "Ocelot32 won by resignation"]

1. e4 {[%clk 0:04:58.1]} 1... e6 {[%clk 0:04:56.3]} 2. d4 {[%clk 0:04:56.8]}
2... d5 {[%clk 0:04:55.1]} 3. e5 {[%clk 0:04:56.2]} 3... c5 {[%clk 0:04:54]} 4.
c3 {[%clk 0:04:55.8]} 4... Nc6 {[%clk 0:04:52.7]} 5. Nf3 {[%clk 0:04:54.9]} 5...
Qb6 {[%clk 0:04:51.2]} 6. a3 {[%clk 0:04:50.4]} 6... c4 {[%clk 0:04:49]} 7. Be2
{[%clk 0:04:39.2]} 7... Nge7 {[%clk 0:04:42.4]} 8. Nbd2 {[%clk 0:04:37.9]} 8...
Ng6 {[%clk 0:04:32.3]} 9. b3 {[%clk 0:04:37]} 9... cxb3 {[%clk 0:04:23.6]} 10.
Nxb3 {[%clk 0:04:35.5]} 10... Be7 {[%clk 0:04:09.1]} 11. Nc5 {[%clk 0:04:32.7]}
11... Bxc5 {[%clk 0:04:07.1]} 12. dxc5 {[%clk 0:04:31.3]} 12... Qxc5 {[%clk
0:04:05.3]} 13. Bb2 {[%clk 0:04:29]} 13... Ncxe5 {[%clk 0:03:55.8]} 14. Nxe5
{[%clk 0:04:27.9]} 14... Nxe5 {[%clk 0:03:53.9]} 15. c4 {[%clk 0:04:23.5]} 15...
Nxc4 {[%clk 0:03:47.5]} 16. Bxc4 {[%clk 0:04:20.1]} 16... Qxc4 {[%clk
0:03:44.9]} 17. Bxg7 {[%clk 0:04:08.9]} 17... Rg8 {[%clk 0:03:38.2]} 18. Rc1
{[%clk 0:04:05.8]} 18... Qe4+ {[%clk 0:03:27.6]} 19. Kf1 {[%clk 0:03:59.1]}
19... Bd7 {[%clk 0:03:26.4]} 20. f3 {[%clk 0:03:46.1]} 20... Bb5+ {[%clk
0:03:18.4]} 21. Kf2 {[%clk 0:03:43.7]} 21... Qh4+ {[%clk 0:02:58.6]} 22. g3
{[%clk 0:03:37.6]} 22... Qg5 {[%clk 0:02:36.9]} 23. Bd4 {[%clk 0:03:28.2]} 23...
h5 {[%clk 0:02:15.7]} 24. Bxa7 {[%clk 0:03:26.3]} 24... Rxa7 {[%clk 0:01:58]}
25. Rc8+ {[%clk 0:03:24.2]} 25... Kd7 {[%clk 0:01:51.3]} 26. Qc2 {[%clk
0:03:17.6]} 26... Bc6 {[%clk 0:01:35]} 27. Rxg8 {[%clk 0:03:11.7]} 27... Qxg8
{[%clk 0:01:33.4]} 28. Ra1 {[%clk 0:03:04.7]} 28... Qf8 {[%clk 0:01:30.9]} 29.
a4 {[%clk 0:03:02.9]} 29... Qb4 {[%clk 0:01:25.2]} 30. Rb1 {[%clk 0:02:55.5]}
30... Qd4+ {[%clk 0:01:20.4]} 31. Kg2 {[%clk 0:02:51.6]} 31... Rxa4 {[%clk
0:01:16.8]} 32. Qh7 {[%clk 0:02:37.4]} 32... Ra2+ {[%clk 0:01:05.7]} 33. Kh3
{[%clk 0:02:35.7]} 33... Qf6 {[%clk 0:01:00]} 34. Qxh5 {[%clk 0:02:25.6]} 34...
Qg6 {[%clk 0:00:56]} 35. Qe5 {[%clk 0:02:15.1]} 35... Qxb1 {[%clk 0:00:52.6]}
36. Qf6 {[%clk 0:02:10.7]} 36... Qh7+ {[%clk 0:00:49.2]} 37. Kg4 {[%clk
0:02:06]} 37... Qg6+ {[%clk 0:00:46.9]} 38. Qxg6 {[%clk 0:02:04.5]} 38... fxg6
{[%clk 0:00:45.8]} 39. h4 {[%clk 0:02:03.4]} 39... Rg2 {[%clk 0:00:41.5]} 0-1

[Event "Live Chess"]
[Site "Chess.com"]
[Date "2023.05.20"]
[Round "-"]
[White "EdenHazard8"]
[Black "TDCMF"]
[Result "1-0"]
[WhiteElo "2122"]
[BlackElo "340"]
[TimeControl "300"]
[EndTime "9:50:01 PDT"]
[Termination "EdenHazard8 won by checkmate"]

1. e4 {[%clk 0:04:58.6]} 1... e5 {[%clk 0:04:58.8]} 2. Qh5 {[%clk 0:04:57.5]}
2... Nc6 {[%clk 0:04:55.5]} 3. Bc4 {[%clk 0:04:56.6]} 3... g6 {[%clk 0:04:46.8]}
4. Qf3 {[%clk 0:04:54.2]} 4... Nf6 {[%clk 0:04:35.5]} 5. Ne2 {[%clk 0:04:52.4]}
5... d6 {[%clk 0:04:17.5]} 6. h3 {[%clk 0:04:40.1]} 6... Be6 {[%clk 0:03:52.4]}
7. Bxe6 {[%clk 0:04:36.6]} 7... fxe6 {[%clk 0:03:47.8]} 8. d3 {[%clk 0:04:35.5]}
8... Bg7 {[%clk 0:03:34.4]} 9. Bg5 {[%clk 0:04:32.3]} 9... Rf8 {[%clk
0:03:25.4]} 10. Qg3 {[%clk 0:04:28.5]} 10... h6 {[%clk 0:03:07.7]} 11. Be3
{[%clk 0:04:23.6]} 11... Nh5 {[%clk 0:02:41]} 12. Qxg6+ {[%clk 0:04:21.2]} 12...
Ke7 {[%clk 0:02:29.9]} 13. Qxh5 {[%clk 0:04:20.5]} 13... Nb4 {[%clk 0:02:05.8]}
14. Na3 {[%clk 0:04:15.7]} 14... Qd7 {[%clk 0:01:56.3]} 15. Bxh6 {[%clk
0:04:11.2]} 15... Bxh6 {[%clk 0:01:51.7]} 16. Qxh6 {[%clk 0:04:11.1]} 16... Qc6
{[%clk 0:01:42.2]} 17. O-O-O {[%clk 0:04:06.7]} 17... Rxf2 {[%clk 0:01:26.1]}
18. Qh4+ {[%clk 0:04:04.3]} 18... Rf6 {[%clk 0:01:18.9]} 19. Rhf1 {[%clk
0:04:01.9]} 19... Rf8 {[%clk 0:01:14.5]} 20. Rxf6 {[%clk 0:04:00]} 20... Rxf6
{[%clk 0:01:13.1]} 21. Rf1 {[%clk 0:03:56.5]} 21... Nxa2+ {[%clk 0:00:55.3]} 22.
Kb1 {[%clk 0:03:52]} 22... Nb4 {[%clk 0:00:42.8]} 23. Qxf6+ {[%clk 0:03:49.8]}
23... Kd7 {[%clk 0:00:35.9]} 24. Qf7+ {[%clk 0:03:48.9]} 24... Kd8 {[%clk
0:00:33.4]} 25. Qf8+ {[%clk 0:03:48.5]} 25... Qe8 {[%clk 0:00:31.3]} 26. Qxe8+
{[%clk 0:03:47.6]} 26... Kxe8 {[%clk 0:00:30.6]} 27. g4 {[%clk 0:03:47.1]} 27...
Kd7 {[%clk 0:00:26]} 28. g5 {[%clk 0:03:46.1]} 28... Ke8 {[%clk 0:00:25]} 29. g6
{[%clk 0:03:45.6]} 29... Kd7 {[%clk 0:00:23.6]} 30. g7 {[%clk 0:03:45.1]} 30...
Kc6 {[%clk 0:00:23.3]} 31. g8=Q {[%clk 0:03:45]} 31... d5 {[%clk 0:00:19.6]} 32.
Qe8+ {[%clk 0:03:44.6]} 32... Kb6 {[%clk 0:00:18.4]} 33. Qb5# {[%clk 0:03:43.6]}
1-0

[Event "Live Chess"]
[Site "Chess.com"]
[Date "2023.05.20"]
[Round "-"]
[White "BostonStrangler"]
[Black "ossie57"]
[Result "1-0"]
[WhiteElo "2017"]
[BlackElo "1829"]
[TimeControl "300"]
[EndTime "9:50:09 PDT"]
[Termination "BostonStrangler won by resignation"]

1. Nf3 {[%clk 0:04:57.8]} 1... Nf6 {[%clk 0:04:58.8]} 2. g3 {[%clk 0:04:57.3]}
2... g6 {[%clk 0:04:58]} 3. Bg2 {[%clk 0:04:57.1]} 3... Bg7 {[%clk 0:04:57.4]}
4. O-O {[%clk 0:04:56.8]} 4... d5 {[%clk 0:04:56.8]} 5. d4 {[%clk 0:04:54.4]}
5... O-O {[%clk 0:04:56.1]} 6. c4 {[%clk 0:04:53.8]} 6... dxc4 {[%clk
0:04:55.2]} 7. Qa4 {[%clk 0:04:51.2]} 7... Bg4 {[%clk 0:04:48.7]} 8. Qxc4 {[%clk
0:04:48.5]} 8... c6 {[%clk 0:04:44.8]} 9. Nc3 {[%clk 0:04:46.1]} 9... Nbd7
{[%clk 0:04:43.9]} 10. h3 {[%clk 0:04:41.7]} 10... Bxf3 {[%clk 0:04:42.1]} 11.
Bxf3 {[%clk 0:04:39.5]} 11... e5 {[%clk 0:04:41.3]} 12. Rd1 {[%clk 0:04:33.7]}
12... exd4 {[%clk 0:04:33.8]} 13. Qxd4 {[%clk 0:04:29.5]} 13... Qe7 {[%clk
0:04:20.5]} 14. Bg5 {[%clk 0:04:24.7]} 14... h6 {[%clk 0:04:17.7]} 15. Bf4
{[%clk 0:04:23.6]} 15... Nd5 {[%clk 0:04:13.7]} 16. Nxd5 {[%clk 0:04:21]} 16...
cxd5 {[%clk 0:04:08.2]} 17. Qxd5 {[%clk 0:04:20.1]} 17... Nb6 {[%clk 0:03:52.4]}
18. Qxb7 {[%clk 0:04:15]} 18... Qe6 {[%clk 0:03:45.9]} 19. Qe4 {[%clk
0:04:09.4]} 19... Bxb2 {[%clk 0:03:40.6]} 20. Qxe6 {[%clk 0:04:01.8]} 20... fxe6
{[%clk 0:03:40.1]} 21. Rab1 {[%clk 0:03:58.8]} 21... Bg7 {[%clk 0:03:36.8]} 22.
Bxa8 {[%clk 0:03:56.6]} 22... Rxa8 {[%clk 0:03:35.8]} 1-0

[Event "Live Chess"]
[Site "Chess.com"]
[Date "2023.05.20"]
[Round "-"]
[White "TobyQuaite"]
[Black "LiamBellwood"]
[Result "0-1"]
[WhiteElo "1701"]
[BlackElo "2099"]
[TimeControl "300"]
[EndTime "9:50:13 PDT"]
[Termination "LiamBellwood won by resignation"]

1. e4 {[%clk 0:04:58.8]} 1... e6 {[%clk 0:04:59.9]} 2. c4 {[%clk 0:04:56.9]}
2... d5 {[%clk 0:04:59.8]} 3. cxd5 {[%clk 0:04:56.2]} 3... exd5 {[%clk
0:04:59.7]} 4. Qb3 {[%clk 0:04:55.8]} 4... dxe4 {[%clk 0:04:54.4]} 5. Bc4 {[%clk
0:04:54.9]} 5... Qd7 {[%clk 0:04:53]} 6. d3 {[%clk 0:04:46.4]} 6... Nc6 {[%clk
0:04:49.2]} 7. Bb5 {[%clk 0:04:32.4]} 7... exd3 {[%clk 0:04:37.4]} 8. Nf3 {[%clk
0:04:31.6]} 8... Bb4+ {[%clk 0:04:33.5]} 9. Kf1 {[%clk 0:04:30.4]} 9... Nge7
{[%clk 0:04:23.1]} 10. Bd2 {[%clk 0:04:25]} 10... Bxd2 {[%clk 0:04:19]} 11.
Nbxd2 {[%clk 0:04:24.9]} 11... O-O {[%clk 0:04:16.1]} 12. Ne5 {[%clk 0:04:17.3]}
12... Qd6 {[%clk 0:04:00.3]} 13. Nxf7 {[%clk 0:04:05.8]} 13... Rxf7 {[%clk
0:03:20.6]} 14. Bc4 {[%clk 0:04:04.4]} 14... Ne5 {[%clk 0:03:20.2]} 15. Ne4
{[%clk 0:03:59]} 15... Qg6 {[%clk 0:03:09.8]} 16. Bxf7+ {[%clk 0:03:45.5]} 16...
Nxf7 {[%clk 0:03:09.7]} 17. Re1 {[%clk 0:03:40.5]} 17... Bf5 {[%clk 0:02:46]}
0-1

[Event "Live Chess"]
[Site "Chess.com"]
[Date "2023.05.20"]
[Round "-"]
[White "OceanFloater"]
[Black "GMHarry-youtube"]
[Result "0-1"]
[WhiteElo "984"]
[BlackElo "2177"]
[TimeControl "300"]
[EndTime "9:50:17 PDT"]
[Termination "GMHarry-youtube won by checkmate"]

1. e4 {[%clk 0:04:58.9]} 1... c5 {[%clk 0:04:58.1]} 2. Nf3 {[%clk 0:04:56]} 2...
d6 {[%clk 0:04:57.6]} 3. a3 {[%clk 0:04:54.3]} 3... Nf6 {[%clk 0:04:56.1]} 4.
Nc3 {[%clk 0:04:51.5]} 4... g6 {[%clk 0:04:54.6]} 5. b4 {[%clk 0:04:49.8]} 5...
b6 {[%clk 0:04:51.8]} 6. bxc5 {[%clk 0:04:47.7]} 6... bxc5 {[%clk 0:04:51.7]} 7.
Bb5+ {[%clk 0:04:46.3]} 7... Bd7 {[%clk 0:04:50.8]} 8. Bxd7+ {[%clk 0:04:44.7]}
8... Qxd7 {[%clk 0:04:50.7]} 9. O-O {[%clk 0:04:39.2]} 9... Bg7 {[%clk
0:04:47.2]} 10. d4 {[%clk 0:04:29.8]} 10... O-O {[%clk 0:04:42.1]} 11. dxc5
{[%clk 0:04:20.3]} 11... dxc5 {[%clk 0:04:39]} 12. Qxd7 {[%clk 0:04:16.3]} 12...
Nbxd7 {[%clk 0:04:38.9]} 13. Bb2 {[%clk 0:04:13.7]} 13... Nxe4 {[%clk
0:04:37.5]} 14. Rfd1 {[%clk 0:04:05.2]} 14... Nb6 {[%clk 0:04:33.4]} 15. Nxe4
{[%clk 0:04:01.3]} 15... Bxb2 {[%clk 0:04:32.1]} 16. Rab1 {[%clk 0:04:00.9]}
16... Bg7 {[%clk 0:04:31.7]} 17. Nxc5 {[%clk 0:03:58.3]} 17... Rac8 {[%clk
0:04:30]} 18. Nd7 {[%clk 0:03:47]} 18... Nxd7 {[%clk 0:04:26.8]} 19. Rxd7 {[%clk
0:03:46.4]} 19... Rxc2 {[%clk 0:04:25.5]} 20. Rxe7 {[%clk 0:03:38.4]} 20... Rfc8
{[%clk 0:04:22.4]} 21. h3 {[%clk 0:03:35.9]} 21... a5 {[%clk 0:04:20.5]} 22. Ra7
{[%clk 0:03:26.9]} 22... R2c5 {[%clk 0:04:14.2]} 23. Kh2 {[%clk 0:03:20.5]}
23... Be5+ {[%clk 0:04:07.6]} 24. g3 {[%clk 0:03:19]} 24... Bf6 {[%clk
0:03:55.6]} 25. Rbb7 {[%clk 0:03:05.8]} 25... Rc2 {[%clk 0:03:49.2]} 26. Rxf7
{[%clk 0:03:01.8]} 26... Rxf2+ {[%clk 0:03:45.1]} 27. Kg1 {[%clk 0:02:56.9]}
27... Ra2 {[%clk 0:03:41.1]} 28. Kf1 {[%clk 0:02:43.2]} 28... Rc1+ {[%clk
0:03:37.5]} 29. Ne1 {[%clk 0:02:41.9]} 29... Bc3 {[%clk 0:03:32.4]} 30. Rfe7
{[%clk 0:02:34.2]} 30... Rxe1+ {[%clk 0:03:27.4]} 31. Rxe1 {[%clk 0:02:32.1]}
31... Bxe1 {[%clk 0:03:27.3]} 32. Kxe1 {[%clk 0:02:31.2]} 32... Rxa3 {[%clk
0:03:27.2]} 33. Kf2 {[%clk 0:02:28.7]} 33... Ra2+ {[%clk 0:03:26.4]} 34. Kf3
{[%clk 0:02:27.3]} 34... a4 {[%clk 0:03:25.8]} 35. Ke3 {[%clk 0:02:24.1]} 35...
a3 {[%clk 0:03:25.7]} 36. Kd3 {[%clk 0:02:23.1]} 36... Rg2 {[%clk 0:03:24.7]}
37. Kc4 {[%clk 0:02:19.3]} 37... Rxg3 {[%clk 0:03:24]} 38. h4 {[%clk 0:02:16.6]}
38... Rg4+ {[%clk 0:03:22.9]} 39. Kb3 {[%clk 0:02:15.2]} 39... Rxh4 {[%clk
0:03:22.4]} 40. Kxa3 {[%clk 0:02:13.8]} 40... Rh3+ {[%clk 0:03:21.9]} 41. Kb4
{[%clk 0:02:13]} 41... g5 {[%clk 0:03:20.3]} 42. Kc4 {[%clk 0:02:10.8]} 42... g4
{[%clk 0:03:19.4]} 43. Kd4 {[%clk 0:02:10.4]} 43... g3 {[%clk 0:03:18.8]} 44.
Ke3 {[%clk 0:02:09.4]} 44... h5 {[%clk 0:03:15.3]} 45. Ra5 {[%clk 0:02:01.4]}
45... h4 {[%clk 0:03:15.2]} 46. Rg5+ {[%clk 0:02:00]} 46... Kh7 {[%clk
0:03:13.8]} 47. Kf3 {[%clk 0:01:58.1]} 47... Kh6 {[%clk 0:03:11.4]} 48. Rg4
{[%clk 0:01:55.6]} 48... Kh5 {[%clk 0:03:05.9]} 49. Rb4 {[%clk 0:01:49.1]} 49...
Rh2 {[%clk 0:03:03.3]} 50. Rb5+ {[%clk 0:01:46.7]} 50... Kh6 {[%clk 0:03:02.2]}
51. Rb4 {[%clk 0:01:44.3]} 51... g2 {[%clk 0:03:00.1]} 52. Kf2 {[%clk
0:01:35.1]} 52... h3 {[%clk 0:02:59.1]} 53. Rb3 {[%clk 0:01:28.1]} 53... Rh1
{[%clk 0:02:57.7]} 54. Rxh3+ {[%clk 0:01:18.9]} 54... Rxh3 {[%clk 0:02:56.2]}
55. Kxg2 {[%clk 0:01:18.5]} 55... Rh5 {[%clk 0:02:55.8]} 56. Kg3 {[%clk
0:01:17.4]} 56... Rg5+ {[%clk 0:02:55.7]} 57. Kf4 {[%clk 0:01:16.6]} 57... Kg6
{[%clk 0:02:55.6]} 58. Ke4 {[%clk 0:01:15.7]} 58... Rf5 {[%clk 0:02:54.6]} 59.
Kd4 {[%clk 0:01:14]} 59... Kf6 {[%clk 0:02:54.2]} 60. Ke4 {[%clk 0:01:13.3]}
60... Re5+ {[%clk 0:02:54.1]} 61. Kf4 {[%clk 0:01:12.5]} 61... Re8 {[%clk
0:02:53.3]} 62. Kf3 {[%clk 0:01:10.4]} 62... Kf5 {[%clk 0:02:52.2]} 63. Kg3
{[%clk 0:01:09.7]} 63... Re4 {[%clk 0:02:48.4]} 64. Kf3 {[%clk 0:01:08.9]} 64...
Re5 {[%clk 0:02:48.1]} 65. Kg3 {[%clk 0:01:07.7]} 65... Re3+ {[%clk 0:02:47.7]}
66. Kf2 {[%clk 0:01:06.4]} 66... Kf4 {[%clk 0:02:47.2]} 67. Kg2 {[%clk
0:01:04.6]} 67... Re2+ {[%clk 0:02:46.3]} 68. Kh3 {[%clk 0:01:03.2]} 68... Ra2
{[%clk 0:02:41.3]} 69. Kh4 {[%clk 0:00:56.1]} 69... Rh2# {[%clk 0:02:41.2]} 0-1

[Event "Live Chess"]
[Site "Chess.com"]
[Date "2023.05.20"]
[Round "-"]
[White "ethanredball"]
[Black "JuperLuper"]
[Result "0-1"]
[WhiteElo "571"]
[BlackElo "1196"]
[TimeControl "300"]
[EndTime "9:50:17 PDT"]
[Termination "JuperLuper won by checkmate"]

1. d4 {[%clk 0:04:57.9]} 1... d5 {[%clk 0:04:56.2]} 2. Bf4 {[%clk 0:04:57.3]}
2... c5 {[%clk 0:04:52.6]} 3. Nc3 {[%clk 0:04:56.9]} 3... cxd4 {[%clk 0:04:49]}
4. Qxd4 {[%clk 0:04:55.2]} 4... Nf6 {[%clk 0:04:46.1]} 5. Nb5 {[%clk 0:04:52]}
5... Na6 {[%clk 0:04:38.1]} 6. e3 {[%clk 0:04:47.5]} 6... Bd7 {[%clk 0:04:18.8]}
7. Nf3 {[%clk 0:04:43.9]} 7... Bxb5 {[%clk 0:04:17.3]} 8. Bxb5+ {[%clk
0:04:41.3]} 8... Nd7 {[%clk 0:04:08.7]} 9. Bxd7+ {[%clk 0:04:38.3]} 9... Qxd7
{[%clk 0:04:06.9]} 10. b3 {[%clk 0:04:34.4]} 10... e6 {[%clk 0:04:03.6]} 11. Qa4
{[%clk 0:04:32.2]} 11... Qxa4 {[%clk 0:04:01.3]} 12. bxa4 {[%clk 0:04:30.8]}
12... Rc8 {[%clk 0:04:00.5]} 13. Nd4 {[%clk 0:04:26.7]} 13... Bb4+ {[%clk
0:03:57.4]} 14. Kf1 {[%clk 0:04:17.3]} 14... Bc3 {[%clk 0:03:51.7]} 15. g3
{[%clk 0:04:11.9]} 15... Bxa1 {[%clk 0:03:48.8]} 16. Kg2 {[%clk 0:04:09.4]}
16... O-O {[%clk 0:03:45.1]} 17. Rxa1 {[%clk 0:04:06.8]} 17... Rfe8 {[%clk
0:03:41.3]} 18. Rb1 {[%clk 0:04:04.9]} 18... e5 {[%clk 0:03:39.4]} 19. Bxe5
{[%clk 0:04:02.2]} 19... Rxe5 {[%clk 0:03:37.7]} 20. Rxb7 {[%clk 0:04:00.3]}
20... Rc7 {[%clk 0:03:24.8]} 21. Rb5 {[%clk 0:03:57]} 21... h6 {[%clk
0:03:19.6]} 22. Ra5 {[%clk 0:03:54.8]} 22... Nc5 {[%clk 0:03:16.6]} 23. Nb5
{[%clk 0:03:44.2]} 23... Rb7 {[%clk 0:03:00.7]} 24. Nxa7 {[%clk 0:03:40.2]}
24... Ne4 {[%clk 0:02:51.1]} 25. Nc6 {[%clk 0:03:37.9]} 25... Rf5 {[%clk
0:02:43.5]} 26. Ra8+ {[%clk 0:03:31.6]} 26... Kh7 {[%clk 0:02:41]} 27. Nd4
{[%clk 0:03:29.1]} 27... Rxf2+ {[%clk 0:02:38.5]} 28. Kh3 {[%clk 0:03:26.3]}
28... Rb2 {[%clk 0:02:30.9]} 29. g4 {[%clk 0:03:07.8]} 29... Rxa2 {[%clk
0:02:17.5]} 30. Nf5 {[%clk 0:03:02.4]} 30... Raxc2 {[%clk 0:02:12.8]} 31. Nxg7
{[%clk 0:02:57.5]} 31... Rxh2# {[%clk 0:02:11.1]} 0-1

[Event "Live Chess"]
[Site "Chess.com"]
[Date "2023.05.20"]
[Round "-"]
[White "Delacorta"]
[Black "friarnator"]
[Result "0-1"]
[WhiteElo "1382"]
[BlackElo "1979"]
[TimeControl "300"]
[EndTime "9:50:26 PDT"]
[Termination "friarnator won by resignation"]

1. d4 {[%clk 0:04:57.5]} 1... Nf6 {[%clk 0:04:58.7]} 2. Nf3 {[%clk 0:04:56.4]}
2... g6 {[%clk 0:04:56.3]} 3. c4 {[%clk 0:04:54]} 3... Bg7 {[%clk 0:04:55.5]} 4.
Nc3 {[%clk 0:04:53]} 4... O-O {[%clk 0:04:55.1]} 5. e3 {[%clk 0:04:48]} 5... d6
{[%clk 0:04:54.3]} 6. Rb1 {[%clk 0:04:44.3]} 6... Nbd7 {[%clk 0:04:53.7]} 7. b3
{[%clk 0:04:41.1]} 7... e5 {[%clk 0:04:52.7]} 8. dxe5 {[%clk 0:04:38.8]} 8...
dxe5 {[%clk 0:04:52]} 9. Bb2 {[%clk 0:04:32.5]} 9... c6 {[%clk 0:04:50.6]} 10.
Be2 {[%clk 0:04:28.6]} 10... Qc7 {[%clk 0:04:49.1]} 11. O-O {[%clk 0:04:23.4]}
11... a5 {[%clk 0:04:44.7]} 12. Ba3 {[%clk 0:04:10.1]} 12... Re8 {[%clk
0:04:41.8]} 13. Bd6 {[%clk 0:04:08.1]} 13... Qd8 {[%clk 0:04:40]} 14. c5 {[%clk
0:03:53.5]} 14... e4 {[%clk 0:04:32.2]} 15. Nd2 {[%clk 0:03:40.2]} 15... b6
{[%clk 0:04:12]} 16. Qc2 {[%clk 0:03:01.8]} 16... bxc5 {[%clk 0:04:08.3]} 17.
Ncxe4 {[%clk 0:03:00.9]} 17... Nxe4 {[%clk 0:04:00.4]} 18. Nxe4 {[%clk
0:02:57.9]} 18... Qb6 {[%clk 0:03:34.6]} 19. Bxc5 {[%clk 0:02:47.9]} 19... Nxc5
{[%clk 0:03:31.9]} 20. Qxc5 {[%clk 0:02:25.8]} 20... Qxc5 {[%clk 0:03:26.7]} 21.
Nxc5 {[%clk 0:02:24.9]} 21... Bf8 {[%clk 0:03:24.8]} 22. Na4 {[%clk 0:02:10.2]}
22... Bf5 {[%clk 0:03:18]} 23. Rbc1 {[%clk 0:02:05.9]} 23... Rac8 {[%clk
0:03:14.7]} 24. Nc5 {[%clk 0:02:01.9]} 24... Re5 {[%clk 0:03:07]} 25. Nd3 {[%clk
0:01:55.1]} 25... Rd5 {[%clk 0:02:59.7]} 26. Nf4 {[%clk 0:01:51.6]} 26... Rd2
{[%clk 0:02:53.6]} 27. Bf3 {[%clk 0:01:27.9]} 27... c5 {[%clk 0:02:48]} 28. a4
{[%clk 0:01:02.4]} 28... Rcd8 {[%clk 0:02:42.4]} 29. Rfd1 {[%clk 0:00:53.8]}
29... Bc2 {[%clk 0:02:40.5]} 30. Rxd2 {[%clk 0:00:42]} 30... Rxd2 {[%clk
0:02:40.4]} 31. g3 {[%clk 0:00:23.9]} 31... Bxb3 {[%clk 0:02:37.4]} 32. Rxc5
{[%clk 0:00:23]} 32... Bxc5 {[%clk 0:02:35.8]} 0-1

[Event "Live Chess"]
[Site "Chess.com"]
[Date "2023.05.20"]
[Round "-"]
[White "Nico14021974"]
[Black "PureMellowPlan"]
[Result "0-1"]
[WhiteElo "546"]
[BlackElo "621"]
[TimeControl "300"]
[EndTime "9:50:27 PDT"]
[Termination "PureMellowPlan won by checkmate"]

1. e4 {[%clk 0:04:56.9]} 1... e5 {[%clk 0:04:58.9]} 2. Nf3 {[%clk 0:04:53.3]}
2... Nc6 {[%clk 0:04:58.2]} 3. d3 {[%clk 0:04:50]} 3... Nf6 {[%clk 0:04:57.8]}
4. g3 {[%clk 0:04:44.8]} 4... d5 {[%clk 0:04:56.9]} 5. exd5 {[%clk 0:04:43.4]}
5... Nxd5 {[%clk 0:04:55.9]} 6. c4 {[%clk 0:04:38.7]} 6... Nf6 {[%clk
0:04:53.6]} 7. Bd2 {[%clk 0:04:32.4]} 7... Bg4 {[%clk 0:04:52]} 8. Ng1 {[%clk
0:04:28.2]} 8... Bxd1 {[%clk 0:04:46.8]} 9. Kxd1 {[%clk 0:04:27.1]} 9... Qd4
{[%clk 0:04:44.3]} 10. Bc3 {[%clk 0:04:23.9]} 10... Qxf2 {[%clk 0:04:41.2]} 11.
Be1 {[%clk 0:04:16.1]} 11... Qxf1 {[%clk 0:04:39.1]} 12. Nd2 {[%clk 0:04:06.3]}
12... Qg2 {[%clk 0:04:35.1]} 13. Rc1 {[%clk 0:04:01.5]} 13... Qxh1 {[%clk
0:04:33.6]} 14. Rc2 {[%clk 0:03:57.2]} 14... Qxh2 {[%clk 0:04:32]} 15. Nf1
{[%clk 0:03:55.2]} 15... Qxg1 {[%clk 0:04:30.8]} 16. Nh2 {[%clk 0:03:43.6]}
16... Qd4 {[%clk 0:04:26.3]} 17. Rc3 {[%clk 0:03:39]} 17... Nb4 {[%clk
0:04:24.2]} 18. Ke2 {[%clk 0:03:28.8]} 18... Nxa2 {[%clk 0:04:17.6]} 19. Bf2
{[%clk 0:03:24.9]} 19... Nxc3+ {[%clk 0:04:15.6]} 20. bxc3 {[%clk 0:03:23.7]}
20... Qxc3 {[%clk 0:04:13.3]} 21. Be1 {[%clk 0:03:22.4]} 21... Qc2+ {[%clk
0:04:09.6]} 22. Kf1 {[%clk 0:03:18.8]} 22... Qxh2 {[%clk 0:04:07.4]} 23. Bf2
{[%clk 0:03:16.6]} 23... Qxf2+ {[%clk 0:04:05.5]} 24. Kxf2 {[%clk 0:03:15.4]}
24... Bc5+ {[%clk 0:04:04]} 25. Kf3 {[%clk 0:03:12.9]} 25... Ke7 {[%clk
0:04:03.4]} 26. g4 {[%clk 0:03:10.1]} 26... Rad8 {[%clk 0:04:02.9]} 27. Ke2
{[%clk 0:03:07.5]} 27... e4 {[%clk 0:04:01]} 28. dxe4 {[%clk 0:03:05.5]} 28...
Nxe4 {[%clk 0:04:00.4]} 29. Kf3 {[%clk 0:03:03.2]} 29... Nf6 {[%clk 0:03:57.9]}
30. Ke2 {[%clk 0:03:00.1]} 30... Nxg4 {[%clk 0:03:56.1]} 31. Kf3 {[%clk
0:02:56.4]} 31... Rd3+ {[%clk 0:03:54.2]} 32. Kxg4 {[%clk 0:02:55.1]} 32... f5+
{[%clk 0:03:53]} 33. Kxf5 {[%clk 0:02:53.1]} 33... g6+ {[%clk 0:03:51.2]} 34.
Kg5 {[%clk 0:02:50.4]} 34... Rf8 {[%clk 0:03:49.4]} 35. Kh6 {[%clk 0:02:47.2]}
35... Rg8 {[%clk 0:03:43.2]} 36. Kxh7 {[%clk 0:02:45.5]} 36... g5 {[%clk
0:03:38.9]} 37. Kxg8 {[%clk 0:02:42.9]} 37... g4 {[%clk 0:03:38.2]} 38. Kg7
{[%clk 0:02:41.4]} 38... g3 {[%clk 0:03:37.1]} 39. Kg6 {[%clk 0:02:40.6]} 39...
g2 {[%clk 0:03:35.9]} 40. Kg5 {[%clk 0:02:39.3]} 40... g1=Q+ {[%clk 0:03:34.9]}
41. Kf4 {[%clk 0:02:38]} 41... Qe3+ {[%clk 0:03:32.7]} 42. Kf5 {[%clk
0:02:35.2]} 42... Qe6+ {[%clk 0:03:24.6]} 43. Kf4 {[%clk 0:02:27.8]} 43... Rd4+
{[%clk 0:03:22.9]} 44. Kf3 {[%clk 0:02:23.1]} 44... Qf5+ {[%clk 0:03:21.2]} 45.
Ke3 {[%clk 0:02:20.5]} 45... Rd3+ {[%clk 0:03:18.4]} 46. Ke2 {[%clk 0:02:13.4]}
46... Qe4+ {[%clk 0:03:16.2]} 47. Kf1 {[%clk 0:02:06.8]} 47... Rf3+ {[%clk
0:03:13.1]} 48. Kg2 {[%clk 0:02:02.7]} 48... Qg4+ {[%clk 0:03:10.5]} 49. Kh1
{[%clk 0:01:57.1]} 49... Rh3# {[%clk 0:03:07.2]} 0-1

[Event "Live Chess"]
[Site "Chess.com"]
[Date "2023.05.20"]
[Round "-"]
[White "Doge_Dandolo"]
[Black "Hacker_2009"]
[Result "1-0"]
[WhiteElo "2147"]
[BlackElo "1902"]
[TimeControl "300"]
[EndTime "9:50:27 PDT"]
[Termination "Doge_Dandolo won by resignation"]

1. Nf3 {[%clk 0:04:59.3]} 1... Nf6 {[%clk 0:04:56.6]} 2. c4 {[%clk 0:04:57.9]}
2... e6 {[%clk 0:04:54.6]} 3. g3 {[%clk 0:04:56]} 3... c5 {[%clk 0:04:53.9]} 4.
Bg2 {[%clk 0:04:53.5]} 4... b6 {[%clk 0:04:53.5]} 5. Ne5 {[%clk 0:04:51.8]} 5...
d5 {[%clk 0:04:50.7]} 6. cxd5 {[%clk 0:04:49.5]} 6... exd5 {[%clk 0:04:50.6]} 7.
d4 {[%clk 0:04:48]} 7... Qc7 {[%clk 0:04:48.2]} 8. O-O {[%clk 0:04:41.7]} 8...
Bb7 {[%clk 0:04:46]} 9. Bf4 {[%clk 0:04:36.5]} 9... Bd6 {[%clk 0:04:42.6]} 10.
Nc3 {[%clk 0:04:33.7]} 10... a6 {[%clk 0:04:39.5]} 11. Rc1 {[%clk 0:04:31.2]}
11... O-O {[%clk 0:04:37.3]} 12. dxc5 {[%clk 0:04:20.7]} 12... Bxe5 {[%clk
0:04:34.8]} 13. cxb6 {[%clk 0:04:18.3]} 13... Qe7 {[%clk 0:04:30.9]} 14. Bg5
{[%clk 0:04:05.2]} 14... d4 {[%clk 0:04:25.8]} 15. Nd5 {[%clk 0:03:49.7]} 15...
Qd7 {[%clk 0:04:18.2]} 16. Nc7 {[%clk 0:03:40]} 16... Bxc7 {[%clk 0:04:12.2]}
17. Rxc7 {[%clk 0:03:38.2]} 17... Qf5 {[%clk 0:04:07.2]} 18. Bxb7 {[%clk
0:03:30.4]} 18... Nbd7 {[%clk 0:04:03]} 19. Bxf6 {[%clk 0:03:25.1]} 19... Nxf6
{[%clk 0:04:01]} 20. Bxa8 {[%clk 0:03:23.4]} 20... Rxa8 {[%clk 0:03:59.6]} 21.
Qb3 {[%clk 0:03:19.4]} 1-0